bitfinex/quotes_BTCUSD_20250226
["timestamp","ask_amount","ask_price","bid_price","bid_amount"]
[1740548820135,0.3,88969.0,88968.0,0.28991617]
[1740548820368,0.168582,88978.0,88968.0,0.28991617]
[1740548820543,0.468579,88979.0,88973.0,0.005]
[1740548820721,0.3,88981.0,88973.0,0.005]
[1740548820928,0.468588,88974.0,88973.0,0.005]
[1740548821128,0.3,88984.0,88968.0,0.18111756]
[1740548821508,0.3,88977.0,88968.0,0.18311756]
[1740548821707,0.0812,88997.0,88968.0,0.18311756]
[1740548821708,0.3,88975.0,88968.0,0.18811756]
[1740548821937,0.3,88977.0,88969.0,0.07350971]
[1740548822133,0.468582,88977.0,88969.0,0.07350971]
[1740548822333,0.3,88977.0,88969.0,0.07350971]
[1740548822532,0.3,88975.0,88969.0,0.07350971]
[1740548823128,0.3,88975.0,88973.0,0.001]
[1740548823325,0.3,88975.0,88973.0,0.04512303]
[1740548823530,0.468588,88974.0,88973.0,0.04412303]
[1740548823732,0.168598,88969.0,88968.0,0.17811756]
[1740548824630,0.168598,88969.0,88968.0,0.18211756]
[1740548825059,0.468598,88969.0,88968.0,0.17811756]
[1740548825278,0.468598,88969.0,88968.0,0.18411756]
[1740548825454,0.58245496,88969.0,88968.0,0.006]
[1740548825660,0.468598,88969.0,88968.0,0.006]
[1740548826093,0.468601,88967.0,88966.0,0.02]
[1740548827561,0.468601,88967.0,88966.0,0.027]
[1740548828757,0.468601,88967.0,88966.0,0.0278482]
[1740548828960,0.468601,88967.0,88966.0,0.0208482]
[1740548829177,0.468601,88967.0,88966.0,0.0218482]
[1740548829571,0.468601,88967.0,88966.0,0.0208482]
[1740548830974,0.59108084,88967.0,88966.0,0.0208482]
[1740548831176,0.468609,88963.0,88954.0,0.17811756]
[1740548831629,0.550509,88963.0,88938.0,0.082]
[1740548832000,0.599909,88963.0,88938.0,0.082]
[1740548833009,0.468626,88954.0,88933.0,0.077624]
[1740548834043,0.224817,88961.0,88933.0,0.077624]
[1740548834044,0.468637,88948.0,88933.0,0.077624]
[1740548834241,0.5379844,88948.0,88933.0,0.000424]
[1740548835261,0.468637,88948.0,88933.0,0.000424]
[1740548837062,0.469637,88948.0,88933.0,0.000424]
[1740548837470,0.468637,88948.0,88933.0,0.000424]
[1740548837825,0.469637,88948.0,88933.0,0.000424]
[1740548844605,0.469637,88948.0,88945.0,0.0797]
[1740548844977,0.469637,88948.0,88940.0,0.081]
[1740548845785,0.469637,88948.0,88935.0,0.0774]
[1740548848299,0.001,88948.0,88935.0,0.0774]
[1740548848643,0.169637,88948.0,88935.0,0.0774]
[1740548850858,0.469637,88948.0,88935.0,0.0774]
[1740548851301,0.301,88948.0,88947.0,0.1261478]
[1740548851715,0.301,88948.0,88947.0,0.15041703]
[1740548851896,0.469637,88948.0,88947.0,0.15041703]
[1740548852085,0.469637,88948.0,88947.0,0.13780225]
[1740548852421,0.468637,88948.0,88947.0,0.1261478]
[1740548852639,0.468637,88948.0,88947.0,0.1281478]
[1740548852750,0.468637,88948.0,88947.0,0.1301478]
[1740548854266,0.3,88948.0,88947.0,0.1301478]
[1740548854481,0.3,88948.0,88947.0,0.14316258]
[1740548854656,0.3,88948.0,88947.0,0.15481703]
[1740548855458,0.0004241,88953.0,88947.0,0.15481703]
[1740548855620,0.0004241,88953.0,88949.0,0.224847]
[1740548855826,0.0004241,88953.0,88950.0,0.0786]
[1740548856046,0.0004241,88953.0,88951.0,0.03796621]
[1740548856449,0.0004241,88953.0,88952.0,0.16863]
[1740548856663,0.0004241,88953.0,88952.0,0.24873]
[1740548857653,0.0004241,88953.0,88952.0,0.42684756]
[1740548857853,0.0004241,88953.0,88952.0,0.47374756]
[1740548858076,0.0004241,88953.0,88952.0,0.58144348]
[1740548858963,0.0004241,88953.0,88952.0,0.58744348]
[1740548859411,0.0004241,88953.0,88952.0,0.59908812]
[1740548860761,0.0004241,88953.0,88952.0,0.61362897]
[1740548861685,0.168575,88981.0,88973.0,0.1234]
[1740548861849,0.01747538,88986.0,88973.0,0.12344196]
[1740548862041,0.01747538,88986.0,88975.0,0.224782]
[1740548862379,0.01747538,88986.0,88977.0,0.224775]
[1740548862517,0.01747538,88986.0,88978.0,0.0777]
[1740548862718,0.168567,88985.0,88979.0,0.02460643]
[1740548863163,0.16857,88984.0,88979.0,0.02460643]
[1740548863371,0.01747538,88986.0,88979.0,0.02460643]
[1740548863601,0.168567,88985.0,88980.0,0.03796621]
[1740548863779,0.168567,88985.0,88980.0,0.0495559]
[1740548863986,0.168575,88981.0,88980.0,0.0495559]
[1740548865362,0.224759,88984.0,88980.0,0.0525559]
[1740548865567,0.01747538,88986.0,88981.0,0.01442707]
[1740548866025,0.01747538,88986.0,88981.0,0.0260148]
[1740548866469,0.168567,88985.0,88981.0,0.0260148]
[1740548866882,0.01747538,88986.0,88981.0,0.0260148]
[1740548867093,0.01747538,88986.0,88981.0,0.0270148]
[1740548867292,0.01747538,88986.0,88982.0,0.0142681]
[1740548867745,0.01747538,88986.0,88983.0,0.01158381]
[1740548868567,0.168569,88985.0,88983.0,0.01158381]
[1740548868766,0.168569,88984.0,88981.0,0.002]
[1740548868969,0.168567,88985.0,88984.0,0.01158185]
[1740548869175,0.01747538,88986.0,88984.0,0.01158185]
[1740548870461,0.01747538,88986.0,88984.0,0.01358185]
[1740548871367,0.01747538,88986.0,88984.0,0.01558185]
[1740548871565,0.168567,88985.0,88984.0,0.01558185]
[1740548872421,0.168567,88985.0,88984.0,0.04797507]
[1740548872586,0.168567,88985.0,88984.0,0.04597507]
[1740548872787,0.3,88999.0,88984.0,0.04597507]
[1740548873014,0.168567,88985.0,88984.0,0.04597507]
[1740548873269,0.224726,88997.0,88984.0,0.04597507]
[1740548873473,0.3,88996.0,88985.0,0.03163593]
[1740548874077,0.168562,88988.0,88986.0,0.01157792]
[1740548874282,0.168562,88988.0,88985.0,0.03163593]
[1740548875231,0.224745,88990.0,88985.0,0.03163593]
[1740548875363,0.224739,88992.0,88986.0,0.002]
[1740548875582,0.3,88993.0,88987.0,0.03390797]
[1740548875803,0.01571413,88997.0,88996.0,0.168546]
[1740548876017,0.168526,89007.0,88996.0,0.244146]
[1740548876224,0.000424,89016.0,88997.0,0.0244146]
[1740548876426,0.168519,89011.0,89000.0,0.168537]
[1740548876634,0.225111,89013.0,89002.0,0.168533]
[1740548876635,0.3,89010.0,89002.0,0.168533]
[1740548876892,0.000424,89013.0,89001.0,0.01154851]
[1740548877053,0.000424,89013.0,89003.0,0.01154459]
[1740548877275,0.16853,89005.0,89003.0,0.03144622]
[1740548877471,0.16853,89005.0,89004.0,0.01154263]
[1740548877789,0.16853,89005.0,89004.0,0.01054263]
[1740548878168,0.18440792,89005.0,89004.0,0.01054263]
[1740548878368,0.18440792,89005.0,89004.0,0.03747327]
[1740548878578,0.01787792,89005.0,89004.0,0.03747327]
[1740548879541,0.01987792,89005.0,89004.0,0.03747327]
[1740548880618,0.01987792,89005.0,89004.0,0.02693064]
[1740548881235,0.01987792,89005.0,89004.0,0.20693284]
[1740548881451,0.01987792,89005.0,89004.0,0.28693284]
[1740548881643,0.01987792,89005.0,89004.0,0.11840184]
[1740548882027,0.01987792,89005.0,89004.0,0.28693284]
[1740548882225,0.01987792,89005.0,89004.0,0.11840184]
[1740548883552,0.004,89005.0,89004.0,0.4650504]
[1740548883762,0.004,89005.0,89004.0,0.5113504]
[1740548884298,0.002,89005.0,89004.0,0.5113504]
[1740548884502,0.003,89005.0,89004.0,0.5113504]
[1740548884852,0.001,89005.0,89004.0,0.5113504]
[1740548885042,0.0004241,89006.0,89005.0,0.245929]
[1740548885179,0.0004241,89006.0,89005.0,0.33925519]
[1740548885381,0.0004241,89006.0,89005.0,0.35072443]
[1740548886293,0.0004241,89006.0,89005.0,0.35272443]
[1740548886516,0.0004241,89006.0,89005.0,0.18619543]
[1740548886728,0.0004241,89006.0,89005.0,0.01346924]
[1740548886729,0.1689511,89006.0,89005.0,0.01346924]
[1740548886944,0.0004241,89006.0,89005.0,0.01346924]
[1740548887386,0.0004241,89006.0,89005.0,0.01546924]
[1740548888700,0.1689511,89006.0,89005.0,0.01546924]
[1740548889066,0.0004241,89006.0,89005.0,0.01546924]
[1740548889271,0.0004241,89006.0,89005.0,0.04539576]
[1740548889469,0.1689511,89006.0,89005.0,0.04539576]
[1740548889897,0.0004241,89006.0,89005.0,0.04539576]
[1740548891003,0.1689511,89006.0,89005.0,0.04539576]
[1740548891213,0.1689511,89006.0,89005.0,0.004]
[1740548892225,0.0004241,89006.0,89005.0,0.172529]
[1740548892396,0.0004241,89006.0,89005.0,0.18399824]
[1740548892798,0.0004241,89006.0,89005.0,0.01546924]
[1740548893034,0.0004241,89006.0,89005.0,0.0876453]
[1740548893570,0.1689511,89006.0,89005.0,0.0876453]
[1740548893757,0.1689511,89006.0,89005.0,0.01546924]
[1740548893925,0.0004241,89006.0,89005.0,0.004]
[1740548894529,0.0004241,89006.0,89005.0,0.01546924]
[1740548895280,0.0004241,89006.0,89005.0,0.18399824]
[1740548896457,0.0004241,89006.0,89005.0,0.01546924]
[1740548896671,0.0004241,89006.0,89005.0,0.0820272]
[1740548896908,0.0004241,89006.0,89005.0,0.2505562]
[1740548898332,0.0004241,89006.0,89005.0,0.0820272]
[1740548899711,0.1689511,89006.0,89005.0,0.0820272]
[1740548899913,0.1689511,89006.0,89005.0,0.01546924]
[1740548900113,0.1689511,89006.0,89005.0,0.004]
[1740548900616,0.15965733,89008.0,89005.0,0.004]
[1740548900837,0.168527,89007.0,89005.0,0.004]
[1740548900997,0.0160581,89008.0,89005.0,0.004]
[1740548901198,0.16894,89013.0,89006.0,0.0299211]
[1740548901400,0.000424,89013.0,89006.0,0.1984481]
[1740548901643,0.000424,89013.0,89006.0,0.0299211]
[1740548901818,0.168517,89012.0,89006.0,0.0299211]
[1740548902030,0.168517,89012.0,89007.0,0.06601623]
[1740548903117,0.01559183,89012.0,89007.0,0.06601623]
[1740548903424,0.16852,89010.0,89007.0,0.06601623]
[1740548903621,0.001424,89013.0,89007.0,0.06601623]
[1740548903869,0.168518,89012.0,89008.0,0.07651763]
[1740548904128,0.000424,89013.0,89008.0,0.07651763]
[1740548904364,0.169516,89012.0,89008.0,0.01146336]
[1740548904831,0.16852,89010.0,89009.0,0.01146139]
[1740548905063,0.16852,89010.0,89005.0,0.0008478]
[1740548905289,0.24166304,89012.0,89009.0,0.01146139]
[1740548905483,0.224691,89011.0,89005.0,0.0008478]
[1740548905715,0.168522,89009.0,89006.0,0.05730662]
[1740548905850,0.11148787,89011.0,89006.0,0.05730662]
[1740548906054,0.01697304,89012.0,89006.0,0.05730662]
[1740548906233,0.168522,89009.0,89006.0,0.05730662]
[1740548906658,0.224691,89011.0,89006.0,0.05730662]
[1740548906870,0.168518,89011.0,89005.0,0.0008478]
[1740548907071,0.01597304,89012.0,89005.0,0.17896536]
[1740548907281,0.16852,89010.0,89006.0,0.01146728]
[1740548907805,0.000424,89013.0,89006.0,0.01246728]
[1740548908021,0.168523,89009.0,89006.0,0.01246728]
[1740548908217,0.168523,89009.0,89007.0,0.03608184]
[1740548908415,0.168524,89008.0,89007.0,0.04754716]
[1740548908616,0.168524,89008.0,89007.0,0.03608184]
[1740548908822,0.168527,89006.0,89005.0,0.17896536]
[1740548910240,0.224693,89011.0,89005.0,0.17896536]
[1740548910404,0.168527,89007.0,89005.0,0.17896536]
[1740548910648,0.224693,89011.0,89005.0,0.17896536]
[1740548910837,0.168526,89007.0,89005.0,0.17896536]
[1740548911070,0.168526,89007.0,89006.0,0.01798132]
[1740548911611,0.224693,89011.0,89006.0,0.01798132]
[1740548911612,0.224692,89011.0,89006.0,0.01798132]
[1740548911818,0.168522,89009.0,89006.0,0.01798132]
[1740548912041,0.168522,89009.0,89007.0,0.01146532]
[1740548912242,0.168522,89009.0,89008.0,0.02112598]
[1740548912574,0.168522,89009.0,89008.0,0.03258934]
[1740548912996,0.0158325,89012.0,89008.0,0.03258934]
[1740548913529,0.168938,89013.0,89008.0,0.03258934]
[1740548913768,0.01646913,89013.0,89009.0,0.0777]
[1740548913994,0.01646913,89013.0,89010.0,0.04596325]
[1740548914232,0.31646913,89013.0,89010.0,0.05742268]
[1740548914845,0.168517,89012.0,89010.0,0.05742268]
[1740548915435,0.168518,89012.0,89010.0,0.05742268]
[1740548915596,0.168518,89012.0,89011.0,0.03149358]
[1740548915822,0.169518,89012.0,89011.0,0.04295105]
[1740548917876,0.168518,89012.0,89011.0,0.04295105]
[1740548918675,0.169518,89012.0,89011.0,0.04295105]
[1740548919037,0.001,89012.0,89011.0,0.04295105]
[1740548919667,0.169516,89012.0,89011.0,0.04295105]
[1740548920494,0.001,89012.0,89011.0,0.04295105]
[1740548920895,0.169516,89012.0,89011.0,0.04295105]
[1740548921442,0.169516,89012.0,89011.0,0.03149358]
[1740548922585,0.169516,89012.0,89011.0,0.04295105]
[1740548922784,0.169516,89012.0,89011.0,0.03149358]
[1740548922984,0.51067013,89014.0,89011.0,0.03149358]
[1740548923191,0.168514,89013.0,89012.0,0.0402714]
[1740548923412,0.168514,89013.0,89012.0,0.02881589]
[1740548923638,0.168513,89014.0,89012.0,0.02881589]
[1740548924456,0.225102,89016.0,89012.0,0.02881589]
[1740548924457,0.168512,89015.0,89012.0,0.02881589]
[1740548924963,0.000424,89016.0,89012.0,0.02881589]
[1740548925134,0.02003616,89015.0,89014.0,0.168512]
[1740548925333,0.000424,89016.0,89014.0,0.168512]
[1740548925543,0.000424,89016.0,89014.0,0.01145159]
[1740548925841,0.000424,89016.0,89015.0,0.06233849]
[1740548926116,0.000424,89016.0,89015.0,0.07378812]
[1740548926281,0.02019047,89016.0,89015.0,0.07378812]
[1740548926495,0.000424,89016.0,89015.0,0.07378812]
[1740548926697,0.000424,89016.0,89015.0,0.01144963]
[1740548927305,0.000424,89016.0,89015.0,0.01444963]
[1740548927956,0.000424,89016.0,89015.0,0.01744963]
[1740548930123,0.000424,89016.0,89015.0,0.18595963]
[1740548930730,0.02045589,89016.0,89015.0,0.18595963]
[1740548930956,0.02045589,89016.0,89015.0,0.24220628]
[1740548931132,0.02045589,89016.0,89015.0,0.07369628]
[1740548943765,0.18896489,89016.0,89015.0,0.01744963]
[1740548944176,0.48896489,89016.0,89015.0,0.01744963]
[1740548944524,0.48896489,89016.0,89015.0,0.003]
[1740548944525,0.48936959,89016.0,89015.0,0.003]
[1740548945658,0.46851,89015.0,89014.0,0.0008476]
[1740548946474,0.66116696,89015.0,89014.0,0.0008476]
[1740548946677,0.54731,89015.0,89014.0,0.0008476]
[1740548947082,0.46851,89015.0,89014.0,0.0008476]
[1740548947445,0.46851,89015.0,89014.0,0.0028476]
[1740548947604,0.46851,89015.0,89014.0,0.0018476]
[1740548947782,0.46851,89015.0,89014.0,0.0008476]
[1740548948208,0.46851,89015.0,89014.0,0.0028476]
[1740548949373,0.46851,89015.0,89014.0,0.0038476]
[1740548949828,0.46851,89015.0,89014.0,0.0068476]
[1740548950453,0.46851,89015.0,89014.0,0.0038476]
[1740548950663,0.46851,89015.0,89014.0,0.0028476]
[1740548951289,0.46851,89015.0,89014.0,0.0008476]
[1740548952191,0.46851,89015.0,89014.0,0.0028476]
[1740548952725,0.46851,89015.0,89014.0,0.0058476]
[1740548954087,0.46851,89015.0,89014.0,0.0038476]
[1740548954470,0.46851,89015.0,89014.0,0.0008476]
[1740548954680,0.468527,89006.0,88996.0,0.17811756]
[1740548957113,0.468527,89006.0,89005.0,0.0058478]
[1740548957958,0.468527,89006.0,89005.0,0.0108478]
[1740548958371,0.468527,89006.0,89005.0,0.0058478]
[1740548958767,0.468527,89006.0,89005.0,0.0088478]
[1740548958978,0.468527,89006.0,89005.0,0.0008478]
[1740548959347,0.468527,89006.0,89005.0,0.0018478]
[1740548959780,0.3,89006.0,89005.0,0.0018478]
[1740548959926,0.3,89006.0,89005.0,0.0008478]
[1740548960332,0.3,89006.0,89005.0,0.0098478]
[1740548960732,0.468527,89006.0,89005.0,0.0058478]
[1740548960940,0.468527,89006.0,89005.0,0.0108478]
[1740548961361,0.3,89006.0,89005.0,0.0108478]
[1740548961657,0.468527,89006.0,89005.0,0.0108478]
[1740548963070,0.468527,89006.0,89005.0,0.0058478]
[1740548963277,0.468527,89006.0,89005.0,0.0008478]
[1740548963476,0.468527,89006.0,89005.0,0.0088478]
[1740548964150,0.46894279,89006.0,89005.0,0.0048478]
[1740548964558,0.46894279,89006.0,89005.0,0.0088478]
[1740548964949,0.46894279,89006.0,89005.0,0.0048478]
[1740548965145,0.46894279,89006.0,89005.0,0.0008478]
[1740548966152,0.468527,89006.0,89005.0,0.0008478]
[1740548966567,0.468527,89006.0,89005.0,0.0058478]
[1740548966703,0.468527,89006.0,89005.0,0.0028478]
[1740548966913,0.468527,89006.0,89005.0,0.0008478]
[1740548967322,0.468527,89006.0,89005.0,0.0048478]
[1740548968226,0.468527,89006.0,89005.0,0.0078478]
[1740548975066,0.468527,89006.0,89005.0,0.0038478]
[1740548975282,0.468527,89006.0,89005.0,0.0068478]
[1740548975566,0.46894332,89006.0,89005.0,0.0068478]
[1740548975825,0.46894332,89006.0,89005.0,0.0008478]
[1740548976027,0.46894332,89006.0,89005.0,0.0038478]
[1740548976511,0.51684332,89006.0,89005.0,0.0008478]
[1740548976917,0.6220232,89006.0,89005.0,0.0008478]
[1740548977117,0.6220232,89006.0,89005.0,0.0018478]
[1740548977336,0.51684332,89006.0,89005.0,0.0001522]
[1740548977695,0.51684332,89006.0,88990.0,0.17811756]
[1740548977696,0.468529,89005.0,88990.0,0.17811756]
[1740548977915,0.468529,89005.0,89004.0,0.0006956]
[1740548978318,0.16894532,89005.0,89004.0,0.0006956]
[1740548979224,0.168529,89005.0,89004.0,0.0006956]
[1740548981567,0.169529,89005.0,89004.0,0.0006956]
[1740548982335,0.201729,89005.0,89004.0,0.0006956]
[1740548982639,0.168575,88981.0,88977.0,0.17811756]
[1740548982846,0.168575,88981.0,88980.0,0.00941823]
[1740548983041,0.168575,88981.0,88980.0,0.00088996]
[1740548983846,0.468575,88981.0,88980.0,0.00088996]
[1740548984087,0.468575,88981.0,88980.0,0.00788996]
[1740548984498,0.468575,88981.0,88980.0,0.01488996]
[1740548985012,0.468575,88981.0,88980.0,0.00788996]
[1740548985413,0.468575,88981.0,88980.0,0.00888996]
[1740548985790,0.468575,88981.0,88980.0,0.00788996]
[1740548985992,0.468575,88981.0,88980.0,0.01088996]
[1740548986402,0.468575,88981.0,88980.0,0.00388996]
[1740548987298,0.468575,88981.0,88980.0,0.00188996]
[1740548987659,0.468575,88981.0,88980.0,0.00288996]
[1740548988248,0.468575,88981.0,88980.0,0.00088996]
[1740548988566,0.47685988,88981.0,88980.0,0.00388996]
[1740548989079,0.47685988,88981.0,88980.0,0.00588996]
[1740548989279,0.47685988,88981.0,88980.0,0.00288996]
[1740548990564,0.47685988,88981.0,88980.0,0.00088996]
[1740548990766,0.47685988,88981.0,88980.0,0.00388996]
[1740548991489,0.47685988,88981.0,88980.0,0.00688996]
[1740548991690,0.47685988,88981.0,88980.0,0.08618996]
[1740548992243,0.17685988,88981.0,88980.0,0.08618996]
[1740548994104,0.47685988,88981.0,88980.0,0.08618996]
[1740548994476,0.224764,88983.0,88980.0,0.09480896]
[1740548994684,0.168575,88981.0,88980.0,0.00688996]
[1740548995341,0.168575,88981.0,88980.0,0.00388996]
[1740548995982,0.168575,88981.0,88980.0,0.00588996]
[1740548996596,0.224759,88984.0,88980.0,0.00588996]
[1740548997015,0.224759,88984.0,88980.0,0.00388996]
[1740548997224,0.168575,88981.0,88980.0,0.00388996]
[1740548997422,0.168575,88981.0,88980.0,0.00688996]
[1740548997580,0.17718548,88981.0,88980.0,0.00388996]
[1740548997781,0.17718548,88981.0,88980.0,0.00088996]
[1740548998241,0.17718548,88981.0,88980.0,0.00488996]
[1740548998383,0.17718548,88981.0,88980.0,0.00288996]
[1740548998584,0.17718548,88981.0,88980.0,0.00088996]
[1740548999380,0.17718548,88981.0,88980.0,0.00388996]
[1740548999871,0.17718548,88981.0,88980.0,0.00688996]
[1740549000069,0.17718548,88981.0,88980.0,0.00388996]
[1740549000343,0.17718548,88981.0,88980.0,0.00588996]
[1740549000782,0.17718548,88981.0,88980.0,0.00288996]
[1740549000934,0.17718548,88981.0,88980.0,0.00488996]
[1740549001316,0.17718548,88981.0,88980.0,0.00288996]
[1740549001539,0.17718548,88981.0,88980.0,0.00088996]
[1740549001739,0.17718548,88981.0,88980.0,0.00688996]
[1740549004134,0.47718548,88981.0,88980.0,0.00688996]
[1740549004348,0.47718548,88981.0,88980.0,0.00388996]
[1740549004531,0.47718548,88981.0,88980.0,0.00088996]
[1740549004691,0.47718548,88981.0,88980.0,0.00288996]
[1740549004892,0.47718548,88981.0,88980.0,0.00488996]
[1740549005074,0.47718548,88981.0,88980.0,0.00088996]
[1740549007500,0.21184582,88981.0,88980.0,0.00088996]
[1740549007700,0.224764,88983.0,88980.0,0.00488996]
[1740549007946,0.168575,88981.0,88980.0,0.00488996]
[1740549008122,0.168575,88981.0,88980.0,0.00088996]
[1740549008327,0.168575,88981.0,88980.0,0.00188996]
[1740549010491,0.168575,88981.0,88980.0,0.00288996]
[1740549010691,0.17721672,88981.0,88980.0,0.00288996]
[1740549011052,0.17721672,88981.0,88980.0,0.00488996]
[1740549011253,0.17721672,88981.0,88980.0,0.00088996]
[1740549011646,0.17721672,88981.0,88980.0,0.00288996]
[1740549012418,0.17721672,88981.0,88980.0,0.00488996]
[1740549012571,0.00844462,88988.0,88981.0,0.0474]
[1740549012732,0.0004241,89004.0,88983.0,0.0793]
[1740549012733,0.168565,88987.0,88983.0,0.0793]
[1740549012939,0.3,88986.0,88983.0,0.0793]
[1740549013573,0.3,88986.0,88984.0,0.00852217]
[1740549013771,0.168569,88984.0,88983.0,0.0793]
[1740549014225,0.468573,88982.0,88981.0,0.0474]
[1740549016688,0.3,88982.0,88981.0,0.0484]
[1740549017045,0.468573,88982.0,88981.0,0.0484]
[1740549017565,0.468573,88982.0,88981.0,0.07865075]
[1740549017729,0.468573,88982.0,88981.0,0.08465075]
[1740549018066,0.468573,88982.0,88981.0,0.0544]
[1740549019962,0.3,88982.0,88981.0,0.0544]
[1740549020563,0.468573,88982.0,88981.0,0.0544]
[1740549021157,0.3,88982.0,88981.0,0.0544]
[1740549021781,0.3,88982.0,88981.0,0.1322]
[1740549022211,0.3,88982.0,88981.0,0.20265655]
[1740549022789,0.0004242,88986.0,88981.0,0.21118329]
[1740549023065,0.3004242,88986.0,88981.0,0.21118329]
[1740549023414,0.3,88983.0,88981.0,0.21118329]
[1740549023615,0.3,88983.0,88981.0,0.20818329]
[1740549024015,0.3,88983.0,88981.0,0.20418329]
[1740549024344,0.3,88983.0,88981.0,0.20518329]
[1740549024546,0.3,88983.0,88981.0,0.20618329]
[1740549024952,0.3004242,88986.0,88981.0,0.20618329]
[1740549025148,0.3,88984.0,88982.0,0.03756593]
[1740549025556,0.3,88984.0,88983.0,0.00852369]
[1740549025993,0.3,88984.0,88981.0,0.1312]
[1740549026197,0.0004242,88986.0,88983.0,0.00852369]
[1740549026370,0.0004242,88986.0,88981.0,0.1312]
[1740549026584,0.0004242,88986.0,88984.0,0.00852217]
[1740549026813,0.0004242,88986.0,88982.0,0.0525444]
[1740549026991,0.0004242,88986.0,88985.0,0.00852064]
[1740549027202,0.0004242,88986.0,88982.0,0.0525444]
[1740549027520,0.4689892,88986.0,88985.0,0.00852064]
[1740549027717,0.168567,88985.0,88984.0,0.001]
[1740549027874,0.168567,88985.0,88984.0,0.002]
[1740549028346,0.3,88983.0,88981.0,0.1252]
[1740549028480,0.3,88983.0,88982.0,0.01276633]
[1740549029933,0.3004242,88986.0,88984.0,0.002]
[1740549030139,0.468567,88985.0,88984.0,0.002]
[1740549030353,0.468571,88983.0,88982.0,0.02129155]
[1740549030509,0.468571,88983.0,88982.0,0.01576633]
[1740549030714,0.468571,88983.0,88982.0,0.01276633]
[1740549031125,0.468573,88982.0,88981.0,0.0512484]
[1740549031365,0.468573,88982.0,88981.0,0.0482484]
[1740549031573,0.468573,88982.0,88981.0,0.0008484]
[1740549032337,0.468573,88982.0,88981.0,0.0038484]
[1740549033372,0.468573,88982.0,88981.0,0.0058484]
[1740549033706,0.58242996,88982.0,88981.0,0.0058484]
[1740549033906,0.468573,88982.0,88981.0,0.0058484]
[1740549034331,0.468573,88982.0,88981.0,0.0008484]
[1740549034530,0.468573,88982.0,88981.0,0.0048484]
[1740549034740,0.468573,88982.0,88981.0,0.0028484]
[1740549035065,0.468573,88982.0,88981.0,0.0008484]
[1740549035268,0.58242996,88982.0,88981.0,0.0008484]
[1740549036229,0.469573,88982.0,88981.0,0.0008484]
[1740549036703,0.468618,88958.0,88957.0,0.0795]
[1740549037837,0.46873104,88958.0,88957.0,0.0855]
[1740549038059,0.46873104,88958.0,88957.0,0.0905]
[1740549038267,0.46873104,88958.0,88957.0,0.0845]
[1740549038663,0.46873104,88958.0,88957.0,0.0905]
[1740549039305,0.46873104,88958.0,88957.0,0.0855]
[1740549039553,0.46873104,88958.0,88957.0,0.0915]
[1740549039767,0.46873104,88958.0,88957.0,0.09892]
[1740549040393,0.46873104,88958.0,88957.0,0.09292]
[1740549040575,0.49318405,88958.0,88957.0,0.09892]
[1740549040772,0.49318405,88958.0,88957.0,0.013]
[1740549040990,0.49318405,88958.0,88957.0,0.007]
[1740549041157,0.49318405,88958.0,88957.0,0.014]
[1740549042481,0.60704101,88958.0,88957.0,0.014]
[1740549042689,0.49318405,88958.0,88957.0,0.0144242]
[1740549042895,0.49318405,88958.0,88957.0,0.0074242]
[1740549043059,0.49318405,88958.0,88957.0,0.0004242]
[1740549043459,0.49318405,88958.0,88957.0,0.0064242]
[1740549043661,0.49318405,88958.0,88957.0,0.0004242]
[1740549043878,0.49418405,88958.0,88957.0,0.0004242]
[1740549044105,0.49318405,88958.0,88957.0,0.0024242]
[1740549044311,0.60704101,88958.0,88957.0,0.0024242]
[1740549044517,0.468637,88948.0,88947.0,0.0008478]
[1740549046475,0.468637,88948.0,88947.0,0.0028478]
[1740549047080,0.468637,88948.0,88947.0,0.0008478]
[1740549047299,0.468637,88948.0,88947.0,0.0038478]
[1740549047554,0.468637,88948.0,88947.0,0.0028478]
[1740549047756,0.3,88949.0,88947.0,0.0038478]
[1740549047962,0.168637,88948.0,88947.0,0.0018478]
[1740549048169,0.168637,88948.0,88947.0,0.0028478]
[1740549049375,0.168637,88948.0,88947.0,0.0018478]
[1740549049892,0.168637,88948.0,88947.0,0.0008478]
[1740549050890,0.168637,88948.0,88947.0,0.0018478]
[1740549052237,0.28249396,88948.0,88947.0,0.0018478]
[1740549053517,0.168637,88948.0,88947.0,0.0018478]
[1740549054834,0.0008486,88948.0,88947.0,0.0018478]
[1740549055216,0.1694856,88948.0,88947.0,0.0018478]
[1740549063518,0.4694856,88948.0,88947.0,0.0018478]
[1740549065016,0.168637,88948.0,88947.0,0.0018478]
[1740549065652,0.168637,88948.0,88947.0,0.01480258]
[1740549066978,0.1694856,88948.0,88947.0,0.01480258]
[1740549068263,0.1694856,88948.0,88947.0,0.01440358]
[1740549069079,0.0008486,88948.0,88947.0,0.09380358]
[1740549070681,0.0008486,88948.0,88947.0,0.40148096]
[1740549071682,0.0008486,88948.0,88947.0,0.40048096]
[1740549071925,0.0008486,88948.0,88947.0,0.23184196]
[1740549072120,0.1694856,88948.0,88947.0,0.23184196]
[1740549072322,0.1694856,88948.0,88947.0,0.23784196]
[1740549072517,0.0008486,88948.0,88947.0,0.23784196]
[1740549072737,0.1694856,88948.0,88947.0,0.23784196]
[1740549072913,0.1694856,88948.0,88947.0,0.24384196]
[1740549073255,0.0008486,88948.0,88947.0,0.24384196]
[1740549073469,0.0008486,88948.0,88947.0,0.41248096]
[1740549073636,0.0008486,88948.0,88947.0,0.42142763]
[1740549075135,0.0008486,88948.0,88947.0,0.25278863]
[1740549076433,0.0008486,88948.0,88947.0,0.43090619]
[1740549076639,0.1694856,88948.0,88947.0,0.34086781]
[1740549076861,0.168637,88948.0,88947.0,0.32791303]
[1740549077078,0.16844284,88948.0,88947.0,0.32791303]
[1740549078814,0.16844284,88948.0,88947.0,0.24851303]
[1740549081270,0.16804484,88948.0,88947.0,0.24851303]
[1740549082404,0.16804484,88948.0,88947.0,0.07039547]
[1740549084625,0.16804484,88948.0,88947.0,0.02139547]
[1740549084858,0.46804484,88948.0,88947.0,0.0124488]
[1740549090577,0.46889344,88948.0,88947.0,0.0124488]
[1740549095263,0.46889344,88948.0,88947.0,0.0064488]
[1740549095620,0.46889344,88948.0,88947.0,0.0114488]
[1740549096033,0.46889344,88948.0,88947.0,0.0064488]
[1740549096459,0.46989344,88948.0,88947.0,0.0124488]
[1740549099077,0.46889344,88948.0,88947.0,0.0004488]
[1740549099474,0.46889344,88948.0,88947.0,0.0064488]
[1740549099776,0.46889344,88948.0,88947.0,0.0034488]